[Event "Titled Tuesday Blitz May 31 Early 2022"]
[White "Keymer, Vincent"]
[Black "Bachmann, Axel"]
[WhiteFideId "12940690"]
[BlackFideId "3700488"]
[WhiteElo "2548"]
[BlackElo "2587"]
[Result "1-0"]
[Round "09"]
[TimeControl "180+1"]
[Date "2022.05.31"]
[WhiteClock "0:00:12"]
[BlackClock "0:00:03"]

1. Nf3 {[%clk 0:03:00]}  Nf6 {[%clk 0:02:56]} 2. c4 {[%clk 0:03:01]}  e6 {[%clk 0:02:55]} 3. Nc3 {[%clk 0:03:00]}  d5 {[%clk 0:02:54]} 4. e3 {[%clk 0:03:01]}  c5 {[%clk 0:02:48]} 5. cxd5 {[%clk 0:03:01]}  exd5 {[%clk 0:02:47]} 6. d4 {[%clk 0:03:00]}  Nc6 {[%clk 0:02:47]} 7. Bb5 {[%clk 0:03:00]}  cxd4 {[%clk 0:02:46]} 8. Nxd4 {[%clk 0:03:01]}  Bd7 {[%clk 0:02:45]} 9. O-O {[%clk 0:03:01]}  Bd6 {[%clk 0:02:45]} 10. Nf3 {[%clk 0:03:02]}  Be6 {[%clk 0:02:33]} 11. b3 {[%clk 0:03:01]}  O-O {[%clk 0:02:33]} 12. Bb2 {[%clk 0:03:01]}  Rc8 {[%clk 0:02:31]} 13. Rc1 {[%clk 0:03:00]}  Qe7 {[%clk 0:02:25]} 14. Ne2 {[%clk 0:02:53]}  Ba3 {[%clk 0:02:22]} 15. Bxa3 {[%clk 0:02:40]}  Qxa3 {[%clk 0:02:23]} 16. Bxc6 {[%clk 0:02:41]}  bxc6 {[%clk 0:02:20]} 17. Qc2 {[%clk 0:02:32]}  c5 {[%clk 0:02:17]} 18. h3 {[%clk 0:02:31]}  Rfd8 {[%clk 0:02:13]} 19. Rfd1 {[%clk 0:02:31]}  d4 {[%clk 0:01:56]} 20. Nf4 {[%clk 0:02:17]}  dxe3 {[%clk 0:01:41]} 21. fxe3 {[%clk 0:01:55]}  Qa6 {[%clk 0:01:39]} 22. Rxd8+ {[%clk 0:01:49]}  Rxd8 {[%clk 0:01:36]} 23. Nxe6 {[%clk 0:01:45]}  Qxe6 {[%clk 0:01:20]} 24. Qxc5 {[%clk 0:01:43]}  a6 {[%clk 0:01:17]} 25. Qe5 {[%clk 0:01:40]}  Qb6 {[%clk 0:01:11]} 26. Nd4 {[%clk 0:01:26]}  Re8 {[%clk 0:01:11]} 27. Qc5 {[%clk 0:01:21]}  Qb8 {[%clk 0:01:01]} 28. Nf5 {[%clk 0:01:05]}  g6 {[%clk 0:01:01]} 29. Qd4 {[%clk 0:01:01]}  gxf5 {[%clk 0:00:31]} 30. Qxf6 {[%clk 0:00:58]}  Qg3 {[%clk 0:00:32]} 31. Rf1 {[%clk 0:00:53]}  Qxe3+ {[%clk 0:00:28]} 32. Kh1 {[%clk 0:00:53]}  Qe6 {[%clk 0:00:23]} 33. Rxf5 {[%clk 0:00:50]}  Qxf6 {[%clk 0:00:14]} 34. Rxf6 {[%clk 0:00:51]}  a5 {[%clk 0:00:14]} 35. Ra6 {[%clk 0:00:46]}  Re5 {[%clk 0:00:13]} 36. Kg1 {[%clk 0:00:46]}  Rf5 {[%clk 0:00:12]} 37. a4 {[%clk 0:00:42]}  h5 {[%clk 0:00:11]} 38. Rb6 {[%clk 0:00:42]}  Kf8 {[%clk 0:00:07]} 39. Rb5 {[%clk 0:00:42]}  Rxb5 {[%clk 0:00:06]} 40. axb5 {[%clk 0:00:43]}  Ke7 {[%clk 0:00:07]} 41. Kf2 {[%clk 0:00:26]}  Kd6 {[%clk 0:00:07]} 42. g4 {[%clk 0:00:16]}  h4 {[%clk 0:00:07]} 43. g5 {[%clk 0:00:14]}  Kc5 {[%clk 0:00:08]} 44. Kf3 {[%clk 0:00:14]}  Kxb5 {[%clk 0:00:08]} 45. Kf4 {[%clk 0:00:14]}  Kb4 {[%clk 0:00:09]} 46. Kf5 {[%clk 0:00:12]}  Kxb3 {[%clk 0:00:09]} 47. Kf6 {[%clk 0:00:13]}  a4 {[%clk 0:00:10]} 48. Kxf7 {[%clk 0:00:14]}  a3 {[%clk 0:00:10]} 49. g6 {[%clk 0:00:14]}  a2 {[%clk 0:00:11]} 50. g7 {[%clk 0:00:15]}  a1=Q {[%clk 0:00:11]} 51. g8=Q {[%clk 0:00:16]}  Qf1+ {[%clk 0:00:10]} 52. Kg6+ {[%clk 0:00:15]}  Kc3 {[%clk 0:00:08]} 53. Qc8+ {[%clk 0:00:15]}  Kd2 {[%clk 0:00:07]} 54. Qg4 {[%clk 0:00:13]}  Ke3 {[%clk 0:00:06]} 55. Qxh4 {[%clk 0:00:13]}  Qb1+ {[%clk 0:00:06]} 56. Kh6 {[%clk 0:00:11]}  Qb6+ {[%clk 0:00:05]} 57. Kh5 {[%clk 0:00:12]}  Kf3 {[%clk 0:00:02]} 58. Qg4+ {[%clk 0:00:12]}  Ke3 {[%clk 0:00:03]} 59. Qg1+ {[%clk 0:00:12]} 1-0


[Site "https://www.chess.com"]

[Event "Titled Tuesday Blitz May 31 Early 2022"]
[White "Kosteniuk, Alexandra"]
[Black "Chigaev, Maksim"]
[WhiteFideId "4128125"]
[BlackFideId "4108116"]
[WhiteElo "2469"]
[BlackElo "2457"]
[Result "0-1"]
[Round "09"]
[TimeControl "180+1"]
[Date "2022.05.31"]
[WhiteClock "0:00:22"]
[BlackClock "0:00:09"]

1. e4 {[%clk 0:03:00]}  c6 {[%clk 0:02:56]} 2. Nc3 {[%clk 0:02:59]}  d5 {[%clk 0:02:54]} 3. Nf3 {[%clk 0:02:59]}  Bg4 {[%clk 0:02:53]} 4. h3 {[%clk 0:02:58]}  Bxf3 {[%clk 0:02:53]} 5. Qxf3 {[%clk 0:02:58]}  e6 {[%clk 0:02:54]} 6. g3 {[%clk 0:02:58]}  Bc5 {[%clk 0:02:54]} 7. Bg2 {[%clk 0:02:54]}  Nd7 {[%clk 0:02:53]} 8. Ne2 {[%clk 0:02:42]}  dxe4 {[%clk 0:02:46]} 9. Qxe4 {[%clk 0:02:40]}  Ngf6 {[%clk 0:02:43]} 10. Qa4 {[%clk 0:02:29]}  e5 {[%clk 0:02:37]} 11. O-O {[%clk 0:02:24]}  O-O {[%clk 0:02:34]} 12. b4 {[%clk 0:02:22]}  Bb6 {[%clk 0:02:32]} 13. Qb3 {[%clk 0:02:17]}  Re8 {[%clk 0:02:27]} 14. Bb2 {[%clk 0:02:16]}  h5 {[%clk 0:02:22]} 15. Rad1 {[%clk 0:02:12]}  a5 {[%clk 0:02:18]} 16. a3 {[%clk 0:02:09]}  axb4 {[%clk 0:02:18]} 17. axb4 {[%clk 0:02:10]}  e4 {[%clk 0:02:13]} 18. Nc3 {[%clk 0:01:57]}  Qc7 {[%clk 0:02:10]} 19. Na4 {[%clk 0:01:40]}  Rxa4 {[%clk 0:02:03]} 20. Qxa4 {[%clk 0:01:38]}  Qxg3 {[%clk 0:02:03]} 21. Qb3 {[%clk 0:01:31]}  h4 {[%clk 0:01:48]} 22. d4 {[%clk 0:01:20]}  Qxb3 {[%clk 0:01:48]} 23. cxb3 {[%clk 0:01:20]}  Nd5 {[%clk 0:01:48]} 24. Rfe1 {[%clk 0:01:13]}  f5 {[%clk 0:01:48]} 25. Bf1 {[%clk 0:01:12]}  Nxb4 {[%clk 0:01:38]} 26. d5 {[%clk 0:01:10]}  Nxd5 {[%clk 0:01:26]} 27. Bc4 {[%clk 0:01:09]}  Ne5 {[%clk 0:01:27]} 28. Bxd5+ {[%clk 0:00:52]}  cxd5 {[%clk 0:01:25]} 29. Rxd5 {[%clk 0:00:45]}  Nf3+ {[%clk 0:01:25]} 30. Kf1 {[%clk 0:00:46]}  Nxe1 {[%clk 0:01:23]} 31. Kxe1 {[%clk 0:00:46]}  f4 {[%clk 0:01:03]} 32. Rg5 {[%clk 0:00:43]}  Re7 {[%clk 0:00:59]} 33. Rg4 {[%clk 0:00:42]}  Ba5+ {[%clk 0:00:48]} 34. Kd1 {[%clk 0:00:31]}  Rd7+ {[%clk 0:00:33]} 35. Kc1 {[%clk 0:00:31]}  e3 {[%clk 0:00:20]} 36. fxe3 {[%clk 0:00:27]}  fxe3 {[%clk 0:00:18]} 37. b4 {[%clk 0:00:27]}  e2 {[%clk 0:00:17]} 38. Bc3 {[%clk 0:00:27]}  Bb6 {[%clk 0:00:12]} 39. Re4 {[%clk 0:00:25]}  Rd3 {[%clk 0:00:12]} 40. Bd2 {[%clk 0:00:22]}  Be3 {[%clk 0:00:09]} 0-1


[Site "https://www.chess.com"]

[Event "Titled Tuesday Blitz May 31 Early 2022"]
[White "Kostiukov, Alexandr"]
[Black "Tasev, Dejan"]
[WhiteFideId "14108100"]
[BlackFideId "936618"]
[WhiteElo "2202"]
[BlackElo "2253"]
[Result "1-0"]
[Round "09"]
[TimeControl "180+1"]
[Date "2022.06.01"]
[WhiteClock "0:00:09"]
[BlackClock "0:00:36"]

1. g3 {[%clk 0:03:00]}  Nf6 {[%clk 0:02:59]} 2. Bg2 {[%clk 0:03:00]}  e6 {[%clk 0:03:00]} 3. d3 {[%clk 0:03:00]}  d5 {[%clk 0:03:00]} 4. e4 {[%clk 0:03:00]}  dxe4 {[%clk 0:02:59]} 5. dxe4 {[%clk 0:03:01]}  Qxd1+ {[%clk 0:02:59]} 6. Kxd1 {[%clk 0:03:02]}  Nc6 {[%clk 0:02:58]} 7. f3 {[%clk 0:03:02]}  b6 {[%clk 0:02:55]} 8. Be3 {[%clk 0:02:59]}  Ba6 {[%clk 0:02:55]} 9. Nd2 {[%clk 0:02:56]}  O-O-O {[%clk 0:02:55]} 10. Nh3 {[%clk 0:02:54]}  h6 {[%clk 0:02:46]} 11. Bf1 {[%clk 0:02:51]}  Bb7 {[%clk 0:02:41]} 12. c3 {[%clk 0:02:48]}  Nd7 {[%clk 0:02:37]} 13. Kc2 {[%clk 0:02:44]}  Bc5 {[%clk 0:02:36]} 14. Bxc5 {[%clk 0:02:29]}  Nxc5 {[%clk 0:02:35]} 15. Nf2 {[%clk 0:02:29]}  a5 {[%clk 0:02:25]} 16. Bb5 {[%clk 0:02:18]}  Rd7 {[%clk 0:02:13]} 17. Nb3 {[%clk 0:02:15]}  Nxb3 {[%clk 0:02:12]} 18. axb3 {[%clk 0:02:16]}  Rhd8 {[%clk 0:02:09]} 19. Rhd1 {[%clk 0:02:15]}  Rxd1 {[%clk 0:02:09]} 20. Nxd1 {[%clk 0:02:12]}  Ne5 {[%clk 0:02:06]} 21. Be2 {[%clk 0:02:10]}  g5 {[%clk 0:02:04]} 22. Nf2 {[%clk 0:01:58]}  f6 {[%clk 0:01:53]} 23. Nd3 {[%clk 0:01:21]}  Nxd3 {[%clk 0:01:50]} 24. Bxd3 {[%clk 0:01:21]}  e5 {[%clk 0:01:50]} 25. Rh1 {[%clk 0:01:11]}  Kd7 {[%clk 0:01:29]} 26. h4 {[%clk 0:01:08]}  Kd6 {[%clk 0:01:18]} 27. hxg5 {[%clk 0:01:06]}  hxg5 {[%clk 0:01:18]} 28. Rh7 {[%clk 0:01:05]}  Rd7 {[%clk 0:01:15]} 29. Rh8 {[%clk 0:01:04]}  g4 {[%clk 0:01:01]} 30. fxg4 {[%clk 0:00:57]}  Rg7 {[%clk 0:01:01]} 31. Rh4 {[%clk 0:00:51]}  c5 {[%clk 0:00:57]} 32. Kd2 {[%clk 0:00:49]}  Bc8 {[%clk 0:00:55]} 33. Be2 {[%clk 0:00:49]}  Be6 {[%clk 0:00:56]} 34. c4 {[%clk 0:00:46]}  Bg8 {[%clk 0:00:52]} 35. Ke3 {[%clk 0:00:45]}  Rh7 {[%clk 0:00:51]} 36. Rh5 {[%clk 0:00:37]}  Ke7 {[%clk 0:00:49]} 37. g5 {[%clk 0:00:22]}  Rxh5 {[%clk 0:00:45]} 38. gxf6+ {[%clk 0:00:21]}  Kxf6 {[%clk 0:00:45]} 39. Bxh5 {[%clk 0:00:22]}  Kg5 {[%clk 0:00:45]} 40. Be2 {[%clk 0:00:18]}  Be6 {[%clk 0:00:44]} 41. Kf2 {[%clk 0:00:16]}  Bf7 {[%clk 0:00:42]} 42. Bf3 {[%clk 0:00:16]}  a4 {[%clk 0:00:42]} 43. Bd1 {[%clk 0:00:13]}  axb3 {[%clk 0:00:42]} 44. Bxb3 {[%clk 0:00:13]}  b5 {[%clk 0:00:43]} 45. cxb5 {[%clk 0:00:09]}  Be8 {[%clk 0:00:36]} 46. b6 {[%clk 0:00:09]} 1-0


[Site "https://www.chess.com"]

[Event "Titled Tuesday Blitz May 31 Early 2022"]
[White "Lopez, Henry"]
[Black "Tanenbaum, Zachary"]
[WhiteFideId "5203830"]
[BlackFideId "2060850"]
[WhiteElo "2177"]
[BlackElo "2168"]
[Result "1-0"]
[Round "09"]
[TimeControl "180+1"]
[Date "2022.06.01"]
[WhiteClock "0:01:07"]
[BlackClock "0:00:12"]

1. d4 {[%clk 0:03:00]}  d5 {[%clk 0:02:59]} 2. Nf3 {[%clk 0:03:00]}  Bf5 {[%clk 0:02:59]} 3. c4 {[%clk 0:02:59]}  e6 {[%clk 0:03:00]} 4. Nc3 {[%clk 0:02:59]}  c6 {[%clk 0:03:01]} 5. e3 {[%clk 0:02:55]}  Nd7 {[%clk 0:03:00]} 6. Be2 {[%clk 0:02:54]}  Ngf6 {[%clk 0:03:00]} 7. Nh4 {[%clk 0:02:53]}  Be4 {[%clk 0:03:00]} 8. f3 {[%clk 0:02:52]}  Bg6 {[%clk 0:03:01]} 9. g3 {[%clk 0:02:51]}  Bd6 {[%clk 0:02:58]} 10. O-O {[%clk 0:02:48]}  O-O {[%clk 0:02:58]} 11. Nxg6 {[%clk 0:02:47]}  hxg6 {[%clk 0:02:59]} 12. f4 {[%clk 0:02:48]}  dxc4 {[%clk 0:02:52]} 13. Bxc4 {[%clk 0:02:47]}  b5 {[%clk 0:02:46]} 14. Bd3 {[%clk 0:02:41]}  b4 {[%clk 0:02:35]} 15. Ne4 {[%clk 0:02:35]}  Nxe4 {[%clk 0:02:35]} 16. Bxe4 {[%clk 0:02:35]}  Rc8 {[%clk 0:02:35]} 17. Kg2 {[%clk 0:02:25]}  Qe7 {[%clk 0:02:27]} 18. h4 {[%clk 0:02:18]}  c5 {[%clk 0:02:20]} 19. dxc5 {[%clk 0:02:17]}  Nxc5 {[%clk 0:02:17]} 20. Bf3 {[%clk 0:02:16]}  Rfd8 {[%clk 0:02:17]} 21. Qe2 {[%clk 0:02:15]}  Bc7 {[%clk 0:02:01]} 22. e4 {[%clk 0:02:11]}  e5 {[%clk 0:01:32]} 23. Bg4 {[%clk 0:02:03]}  Rd4 {[%clk 0:01:29]} 24. Bxc8 {[%clk 0:01:58]}  Rxe4 {[%clk 0:01:10]} 25. Qf3 {[%clk 0:01:55]}  exf4 {[%clk 0:01:09]} 26. gxf4 {[%clk 0:01:46]}  Re2+ {[%clk 0:00:48]} 27. Rf2 {[%clk 0:01:45]}  Re1 {[%clk 0:00:47]} 28. b3 {[%clk 0:01:34]}  Qxh4 {[%clk 0:00:03]} 29. Qh3 {[%clk 0:01:32]}  Qf6 {[%clk 0:00:03]} 30. Bb2 {[%clk 0:01:31]}  Qc6+ {[%clk 0:00:04]} 31. Qf3 {[%clk 0:01:30]}  Qe8 {[%clk 0:00:03]} 32. Rxe1 {[%clk 0:01:28]}  Qxe1 {[%clk 0:00:04]} 33. Re2 {[%clk 0:01:27]}  Qh4 {[%clk 0:00:03]} 34. Re8+ {[%clk 0:01:25]}  Kh7 {[%clk 0:00:03]} 35. Qh3 {[%clk 0:01:21]}  Qxh3+ {[%clk 0:00:04]} 36. Kxh3 {[%clk 0:01:20]}  Nd3 {[%clk 0:00:04]} 37. Bd4 {[%clk 0:01:17]}  Nxf4+ {[%clk 0:00:05]} 38. Kg4 {[%clk 0:01:17]}  f5+ {[%clk 0:00:04]} 39. Kf3 {[%clk 0:01:17]}  Nd5 {[%clk 0:00:02]} 40. Be6 {[%clk 0:01:14]}  Nf6 {[%clk 0:00:02]} 41. Bxf6 {[%clk 0:01:13]}  gxf6 {[%clk 0:00:03]} 42. Re7+ {[%clk 0:01:13]}  Kh6 {[%clk 0:00:03]} 43. Rxc7 {[%clk 0:01:13]}  Kg5 {[%clk 0:00:04]} 44. Rh7 {[%clk 0:01:11]}  f4 {[%clk 0:00:05]} 45. Rxa7 {[%clk 0:01:10]}  f5 {[%clk 0:00:06]} 46. Ra5 {[%clk 0:01:08]}  Kf6 {[%clk 0:00:07]} 47. Bxf5 {[%clk 0:01:09]}  Kg5 {[%clk 0:00:08]} 48. Bxg6+ {[%clk 0:01:08]}  Kh6 {[%clk 0:00:09]} 49. Kxf4 {[%clk 0:01:08]}  Kg7 {[%clk 0:00:10]} 50. Kg5 {[%clk 0:01:08]}  Kh8 {[%clk 0:00:11]} 51. Kf6 {[%clk 0:01:08]}  Kg8 {[%clk 0:00:12]} 52. Ra8# {[%clk 0:01:07]} 1-0


[Site "https://www.chess.com"]

[Event "Titled Tuesday Blitz May 31 Early 2022"]
[White "Maghsoodloo, Parham"]
[Black "Lazavik, Denis"]
[WhiteFideId "12539929"]
[BlackFideId "13515110"]
[WhiteElo "2630"]
[BlackElo "2437"]
[Result "1/2-1/2"]
[Round "09"]
[TimeControl "180+1"]
[Date "2022.05.31"]
[WhiteClock "0:00:03"]
[BlackClock "0:00:04"]

1. e4 {[%clk 0:03:00]}  e5 {[%clk 0:02:59]} 2. Nf3 {[%clk 0:03:00]}  Nc6 {[%clk 0:03:00]} 3. Bb5 {[%clk 0:02:58]}  Nf6 {[%clk 0:03:00]} 4. O-O {[%clk 0:02:56]}  Nxe4 {[%clk 0:03:00]} 5. Re1 {[%clk 0:02:54]}  Nd6 {[%clk 0:03:00]} 6. a4 {[%clk 0:02:50]}  Be7 {[%clk 0:02:57]} 7. Nc3 {[%clk 0:02:49]}  a6 {[%clk 0:02:56]} 8. Bf1 {[%clk 0:02:48]}  e4 {[%clk 0:02:56]} 9. Nxe4 {[%clk 0:02:45]}  Nxe4 {[%clk 0:02:57]} 10. Rxe4 {[%clk 0:02:45]}  d5 {[%clk 0:02:58]} 11. Re1 {[%clk 0:02:46]}  Bg4 {[%clk 0:02:58]} 12. h3 {[%clk 0:02:44]}  Bh5 {[%clk 0:02:57]} 13. a5 {[%clk 0:02:36]}  O-O {[%clk 0:02:54]} 14. c3 {[%clk 0:02:36]}  d4 {[%clk 0:02:48]} 15. Bc4 {[%clk 0:02:32]}  Bd6 {[%clk 0:02:43]} 16. g4 {[%clk 0:02:09]}  Bg6 {[%clk 0:02:41]} 17. d3 {[%clk 0:02:09]}  Kh8 {[%clk 0:02:34]} 18. cxd4 {[%clk 0:02:02]}  f5 {[%clk 0:02:20]} 19. d5 {[%clk 0:02:00]}  fxg4 {[%clk 0:02:12]} 20. hxg4 {[%clk 0:01:58]}  Qd7 {[%clk 0:01:59]} 21. Ng5 {[%clk 0:01:35]}  Ne5 {[%clk 0:01:59]} 22. Rxe5 {[%clk 0:01:32]}  Bxe5 {[%clk 0:01:57]} 23. Ne6 {[%clk 0:01:33]}  Bf7 {[%clk 0:01:18]} 24. Qe2 {[%clk 0:01:21]}  Bxe6 {[%clk 0:01:12]} 25. dxe6 {[%clk 0:01:21]}  Qd6 {[%clk 0:01:12]} 26. Qe4 {[%clk 0:01:13]}  Rae8 {[%clk 0:00:58]} 27. Be3 {[%clk 0:01:10]}  Bf4 {[%clk 0:00:42]} 28. Re1 {[%clk 0:00:40]}  Bxe3 {[%clk 0:00:41]} 29. Rxe3 {[%clk 0:00:38]}  c6 {[%clk 0:00:37]} 30. Rh3 {[%clk 0:00:34]}  h6 {[%clk 0:00:31]} 31. g5 {[%clk 0:00:34]}  Qf4 {[%clk 0:00:22]} 32. Qxf4 {[%clk 0:00:29]}  Rxf4 {[%clk 0:00:23]} 33. gxh6 {[%clk 0:00:29]}  Rf6 {[%clk 0:00:23]} 34. hxg7+ {[%clk 0:00:29]}  Kxg7 {[%clk 0:00:24]} 35. Kf1 {[%clk 0:00:23]}  Ref8 {[%clk 0:00:24]} 36. Rg3+ {[%clk 0:00:18]}  Rg6 {[%clk 0:00:22]} 37. Re3 {[%clk 0:00:18]}  Kf6 {[%clk 0:00:17]} 38. d4 {[%clk 0:00:12]}  Rg4 {[%clk 0:00:16]} 39. Rd3 {[%clk 0:00:08]}  Ke7 {[%clk 0:00:15]} 40. b3 {[%clk 0:00:08]}  Rgf4 {[%clk 0:00:13]} 41. Rg3 {[%clk 0:00:03]}  Rxf2+ {[%clk 0:00:13]} 42. Ke1 {[%clk 0:00:04]}  Rb2 {[%clk 0:00:04]} 43. Rg7+ {[%clk 0:00:04]}  Ke8 {[%clk 0:00:05]} 44. Rxb7 {[%clk 0:00:03]}  Rff2 {[%clk 0:00:04]} 45. Bd3 {[%clk 0:00:03]}  Rg2 {[%clk 0:00:03]} 46. Kf1 {[%clk 0:00:02]}  Rbf2+ {[%clk 0:00:03]} 47. Ke1 {[%clk 0:00:02]}  Ra2 {[%clk 0:00:04]} 48. Kf1 {[%clk 0:00:03]}  Raf2+ {[%clk 0:00:04]} 49. Ke1 {[%clk 0:00:03]}  Ra2 {[%clk 0:00:03]} 50. Kf1 {[%clk 0:00:03]}  Raf2+ {[%clk 0:00:04]} 1/2-1/2


[Site "https://www.chess.com"]

[Event "Titled Tuesday Blitz May 31 Early 2022"]
[White "Maiorov, Nikita"]
[Black "Cherniaiev, Tykhon"]
[WhiteFideId "13501720"]
[BlackFideId "14182360"]
[WhiteElo "2417"]
[BlackElo "2289"]
[Result "0-1"]
[Round "09"]
[TimeControl "180+1"]
[Date "2022.05.31"]
[WhiteClock "0:00:16"]
[BlackClock "0:00:30"]

1. e4 {[%clk 0:02:57]}  c5 {[%clk 0:02:59]} 2. c3 {[%clk 0:02:45]}  d5 {[%clk 0:02:59]} 3. exd5 {[%clk 0:02:42]}  Qxd5 {[%clk 0:03:00]} 4. d4 {[%clk 0:02:41]}  Nc6 {[%clk 0:02:57]} 5. Nf3 {[%clk 0:02:40]}  cxd4 {[%clk 0:02:52]} 6. cxd4 {[%clk 0:02:38]}  Bg4 {[%clk 0:02:52]} 7. Be2 {[%clk 0:02:35]}  e6 {[%clk 0:02:52]} 8. Nc3 {[%clk 0:02:33]}  Qd8 {[%clk 0:02:49]} 9. O-O {[%clk 0:02:30]}  Nf6 {[%clk 0:02:49]} 10. h3 {[%clk 0:01:31]}  Bh5 {[%clk 0:02:47]} 11. g4 {[%clk 0:01:21]}  Bg6 {[%clk 0:02:46]} 12. Ne5 {[%clk 0:01:19]}  Bd6 {[%clk 0:02:31]} 13. Bf3 {[%clk 0:01:15]}  O-O {[%clk 0:02:14]} 14. Nxg6 {[%clk 0:01:07]}  hxg6 {[%clk 0:02:13]} 15. Bg5 {[%clk 0:01:06]}  Nxd4 {[%clk 0:02:09]} 16. Bxb7 {[%clk 0:01:02]}  Rb8 {[%clk 0:02:07]} 17. Bg2 {[%clk 0:01:01]}  Rxb2 {[%clk 0:02:01]} 18. Kh1 {[%clk 0:01:00]}  Be7 {[%clk 0:01:56]} 19. Be3 {[%clk 0:00:54]}  e5 {[%clk 0:01:54]} 20. g5 {[%clk 0:00:52]}  Nh5 {[%clk 0:01:52]} 21. Qg4 {[%clk 0:00:40]}  Nf5 {[%clk 0:01:17]} 22. Rad1 {[%clk 0:00:28]}  Qc8 {[%clk 0:01:01]} 23. Nd5 {[%clk 0:00:26]}  Qe6 {[%clk 0:00:52]} 24. Bxa7 {[%clk 0:00:19]}  Rxa2 {[%clk 0:00:42]} 25. Bb6 {[%clk 0:00:19]}  e4 {[%clk 0:00:31]} 26. Qxe4 {[%clk 0:00:16]}  Nhg3+ {[%clk 0:00:30]} 0-1


[Site "https://www.chess.com"]

[Event "Titled Tuesday Blitz May 31 Early 2022"]
[White "Maksimenko, Viktor"]
[Black "Le, Tuan Minh"]
[WhiteFideId "13710478"]
[BlackFideId "12401153"]
[WhiteElo "2269"]
[BlackElo "2450"]
[Result "1-0"]
[Round "09"]
[TimeControl "180+1"]
[Date "2022.05.31"]
[WhiteClock "0:00:38"]
[BlackClock "0:00:03"]

1. d4 {[%clk 0:03:00]}  d5 {[%clk 0:03:00]} 2. c4 {[%clk 0:02:57]}  c6 {[%clk 0:03:00]} 3. Nf3 {[%clk 0:02:57]}  Nf6 {[%clk 0:02:54]} 4. Qb3 {[%clk 0:02:57]}  dxc4 {[%clk 0:02:54]} 5. Qxc4 {[%clk 0:02:57]}  Bg4 {[%clk 0:02:54]} 6. Nbd2 {[%clk 0:02:57]}  Nbd7 {[%clk 0:02:54]} 7. g3 {[%clk 0:02:56]}  e6 {[%clk 0:02:54]} 8. Bg2 {[%clk 0:02:56]}  Be7 {[%clk 0:02:55]} 9. O-O {[%clk 0:02:55]}  O-O {[%clk 0:02:51]} 10. Qb3 {[%clk 0:02:55]}  Qb6 {[%clk 0:02:52]} 11. Nc4 {[%clk 0:02:55]}  Qa6 {[%clk 0:02:52]} 12. Bg5 {[%clk 0:02:53]}  Nb6 {[%clk 0:02:28]} 13. Rfc1 {[%clk 0:02:48]}  h6 {[%clk 0:02:25]} 14. Bf4 {[%clk 0:02:41]}  Rac8 {[%clk 0:02:08]} 15. e3 {[%clk 0:02:20]}  Nfd5 {[%clk 0:01:51]} 16. Nfe5 {[%clk 0:02:04]}  Be2 {[%clk 0:01:48]} 17. Nxb6 {[%clk 0:01:50]}  axb6 {[%clk 0:01:39]} 18. h4 {[%clk 0:01:17]}  g5 {[%clk 0:01:29]} 19. hxg5 {[%clk 0:01:17]}  hxg5 {[%clk 0:01:30]} 20. e4 {[%clk 0:01:16]}  Nxf4 {[%clk 0:00:54]} 21. gxf4 {[%clk 0:01:16]}  gxf4 {[%clk 0:00:55]} 22. Bf3 {[%clk 0:01:10]}  Rfd8 {[%clk 0:00:46]} 23. Re1 {[%clk 0:00:49]}  Bxf3 {[%clk 0:00:15]} 24. Qxf3 {[%clk 0:00:50]}  Bf6 {[%clk 0:00:16]} 25. Qxf4 {[%clk 0:00:44]}  Bxe5 {[%clk 0:00:16]} 26. dxe5 {[%clk 0:00:45]}  Kf8 {[%clk 0:00:09]} 27. Re3 {[%clk 0:00:43]}  Ke8 {[%clk 0:00:06]} 28. Rh3 {[%clk 0:00:41]}  Rc7 {[%clk 0:00:03]} 29. Rh8+ {[%clk 0:00:38]}  Kd7 {[%clk 0:00:03]} 30. Rd1+ {[%clk 0:00:38]} 1-0


[Site "https://www.chess.com"]

[Event "Titled Tuesday Blitz May 31 Early 2022"]
[White "Maltsevskaya, Aleksandra"]
[Black "Manukian, Artak"]
[WhiteFideId "24174041"]
[BlackFideId "13301373"]
[WhiteElo "2235"]
[BlackElo "2550"]
[Result "1-0"]
[Round "09"]
[TimeControl "180+1"]
[Date "2022.05.31"]
[WhiteClock "0:00:17"]
[BlackClock "0:00:42"]

1. e3 {[%clk 0:02:08]}  c5 {[%clk 0:02:59]} 2. Nf3 {[%clk 0:02:07]}  d5 {[%clk 0:02:59]} 3. d4 {[%clk 0:02:07]}  Nc6 {[%clk 0:02:59]} 4. g3 {[%clk 0:02:05]}  Bg4 {[%clk 0:02:59]} 5. c3 {[%clk 0:02:05]}  e5 {[%clk 0:02:58]} 6. dxe5 {[%clk 0:02:03]}  Nxe5 {[%clk 0:02:58]} 7. Bb5+ {[%clk 0:02:03]}  Nc6 {[%clk 0:02:55]} 8. h3 {[%clk 0:02:02]}  Bh5 {[%clk 0:02:51]} 9. O-O {[%clk 0:01:58]}  a6 {[%clk 0:02:44]} 10. Be2 {[%clk 0:01:40]}  Nf6 {[%clk 0:02:39]} 11. Nbd2 {[%clk 0:01:37]}  Bd6 {[%clk 0:02:37]} 12. c4 {[%clk 0:01:34]}  O-O {[%clk 0:02:20]} 13. cxd5 {[%clk 0:01:32]}  Nxd5 {[%clk 0:02:20]} 14. Nc4 {[%clk 0:01:24]}  Bc7 {[%clk 0:02:17]} 15. e4 {[%clk 0:01:24]}  Nb6 {[%clk 0:02:13]} 16. Nxb6 {[%clk 0:01:07]}  Bxb6 {[%clk 0:02:14]} 17. Be3 {[%clk 0:01:06]}  Bg6 {[%clk 0:02:03]} 18. Nd2 {[%clk 0:01:03]}  Nd4 {[%clk 0:01:58]} 19. Bxd4 {[%clk 0:00:46]}  cxd4 {[%clk 0:01:53]} 20. Bd3 {[%clk 0:00:46]}  Re8 {[%clk 0:01:49]} 21. Rc1 {[%clk 0:00:42]}  Ba5 {[%clk 0:01:40]} 22. Nc4 {[%clk 0:00:38]}  Bxe4 {[%clk 0:01:39]} 23. Bxe4 {[%clk 0:00:38]}  Rxe4 {[%clk 0:01:39]} 24. Qf3 {[%clk 0:00:39]}  Re7 {[%clk 0:01:37]} 25. Rfd1 {[%clk 0:00:34]}  Rc8 {[%clk 0:01:15]} 26. Nxa5 {[%clk 0:00:31]}  Rxc1 {[%clk 0:01:12]} 27. Rxc1 {[%clk 0:00:32]}  h5 {[%clk 0:01:10]} 28. Nxb7 {[%clk 0:00:25]}  Qb6 {[%clk 0:01:09]} 29. Nc5 {[%clk 0:00:22]}  Qxb2 {[%clk 0:01:05]} 30. Nd3 {[%clk 0:00:22]}  Qb5 {[%clk 0:01:01]} 31. a4 {[%clk 0:00:21]}  Qg5 {[%clk 0:00:59]} 32. Rc5 {[%clk 0:00:20]}  Qg6 {[%clk 0:00:53]} 33. Rxh5 {[%clk 0:00:20]}  f6 {[%clk 0:00:43]} 34. Qa8+ {[%clk 0:00:17]}  Kf7 {[%clk 0:00:42]} 35. Qd5+ {[%clk 0:00:17]}  Re6 {[%clk 0:00:42]} 36. Qxe6+ {[%clk 0:00:17]}  Kxe6 {[%clk 0:00:42]} 37. Nf4+ {[%clk 0:00:17]} 1-0


[Site "https://www.chess.com"]